{"text_format":"1","workbook":"xlsx","n_sheets":5,"sheets":["Forside","Skjema","Vedlegg","Beregningsgrunnlag Pilar 2","Python"],"not_rendered":{"charts":0,"images":0,"macros":1,"external_links":0,"defined_names":2,"comments":2,"pivot_tables":0},"unopened":[],"bounds":{"document_bytes":16777216,"sheet_cells":100000,"rows_first":2000,"rows_last":500,"rows_between":2000,"halvings":0,"cell_chars":16384,"cell_head_chars":4096},"cells_cut":0,"cells_raw":0,"read":"whole","date_system":"1900"}

{"sheet":"Forside","index":0,"n_rows":12,"n_cols":98,"rows_kept":12,"cut":false,"hidden":false,"merged":[[6,1,6,6],[11,1,11,2],[11,3,11,4],[12,1,12,2],[12,4,12,5],[7,2,7,6],[8,1,8,5],[9,1,9,5],[10,1,10,2],[10,3,10,4]]}
["Versjonsnummer",null,"KRT-1225 ",null,null,null,null,null,null,null,null,null,null,null,null,null,null,"1. kvartal",{"$f":"(YEAR(NOW()))+1","v":2024},null,null,null,null,null,null,null,null,null,null,null,null,null,null,null,null,null,null,null,null,null,null,null,null,null,null,null,null,null,null,null,null,null,{"$f":"C1","v":"KRT-1225 "},{"$f":"B12","v":20220331},{"$f":"A2","v":322},{"$f":"G10","v":0},{"$f":"F12","v":0},{"$f":"IFERROR(LEFT(G12,1)*3,0)","v":0},10,"Forside",{"$f":"IF(G13=\"Konsolidert\",2,IF(G13=\"Ikke Konsolidert\",1,IF(G13=\"\",-1)))","v":-1},0,null,null,null,null,null,null,null,null,null,null,null,null,null,null,null,null,"BA",999999001,"BB",{"$f":"+CB1+1","v":999999002},"BC",{"$f":"+CD1+1","v":999999003},"BD",{"$f":"+CF1+1","v":999999004},"BE",{"$f":"+CH1+1","v":999999005},"BF",{"$f":"+CJ1+1","v":999999006},"BG",{"$f":"+CL1+1","v":999999007},"BH",{"$f":"+CN1+1","v":999999008},"BI",{"$f":"+CP1+1","v":999999009},"BJ",{"$f":"+CR1+1","v":999999010}]
[322,null,null,null,null,null,null,null,null,null,null,null,null,null,null,null,null,"2. kvartal",{"$f":"+S1-1","v":2023},null,null,null,null,null,null,null,null,null,null,null,null,null,null,null,null,null,null,null,null,null,null,null,null,null,null,null,null,null,null,null,null,null,"Skjema-ID","Gyldig Excel Mal","VersjonsNr","Orgnr","År","MND","Antall datakolonner","Arknavn","Kons./ikke kons.","SA/IRB"]
[null,null,null,null,null,null,null,null,null,null,null,null,null,null,null,null,null,"3. kvartal",{"$f":"+S2-1","v":2022}]
[null,null,null,null,null,null,null,null,null,null,null,null,null,null,null,null,null,"4. kvartal"]
[null,null,null,null,null,null,null,null,null,null,null,null,null,null,null,null,null,null,null,null,null,null,5]
[null,null,null,null,null,null,null,null,null,null,null,null,null,null,null,null,null,null,null,null,null,null,null,6]
[null,"Skjema for rapportering av Markedsrisiko: rammer og tapspotensial",null,null,null,null,null,null,null,null,null,null,null,null,null,null,null,null,null,null,null,null,null,7]
[null,null,null,null,null,null,null,null,null,null,null,null,null,null,null,null,null,null,null,null,null,null,null,8]
[null,"FORETAKETS NAVN:",null,null,null,null,"ORGANISASJONS-\nNUMMER:",null,null,null,null,null,null,null,null,null,null,null,null,null,null,null,null,9]
[null,null,null,null,null,null,null,null,null,null,null,null,null,null,null,null,null,null,null,null,null,null,null,10]
[null,"EXCELMAL GYLDIG FRA:",null,"SISTE DAG I \nRAPPORTERINGSPERIODEN:",null,"RAPPORTERINGSÅR:","RAPPORTERINGSPERIODE:"]
[null,20220331,null,{"$f":"IF(OR(F12=\"\",G12=\"\"),\"\",IF(G12=\"1. kvartal\",CONCATENATE(\"31.03.\",CONCATENATE(RIGHT(F12,4))),IF(G12=\"2. kvartal\",CONCATENATE(\"30.06.\",CONCATENATE(RIGHT(F12,4))),IF(G12=\"3. kvartal\",CONCATENATE(\"30.09.\",CONCATENATE(RIGHT(F12,4))),IF(G12=\"4. kvartal\",CONCATENATE(\"31.12.\",CONCATENATE(RIGHT(F12,4))))))))","v":""}]

{"sheet":"Skjema","index":1,"n_rows":132,"n_cols":5,"rows_kept":132,"cut":false,"hidden":false,"merged":[[97,2,97,3],[83,2,83,3],[60,2,60,3],[31,2,31,3],[131,2,131,3],[129,2,129,3]]}
[null,"Markedsrisiko: rammer og tapspotensial"]
[]
[null,{"$f":"Forside!B10","v":0},{"$f":"Forside!G10","v":0}]
[]
[null,"Vurdering per:",{"$f":"Forside!D12","v":""}]
[]
[null,"Har foretaket handelsportefølje som det må stilles kapital for etter Pilar 1?"]
[]
[null,"Er noen av rammene endret siden siste rapportering?"]
[]
[null,"Aksjerisiko","Beløp i tusen kr",null,"Skjult (=1)"]
[{"$f":"+IF($C$7<>\"Nei\",0,1)","v":0},"Handelsportefølje"]
[{"$f":"+IF($C$7<>\"Nei\",0,1)","v":0},"Ramme for tapspotensial"]
[{"$f":"+IF($C$7<>\"Nei\",0,1)","v":0},"Tapspotensial",{"$f":"C15+C18+C19","v":0}]
[{"$f":"+IF($C$7<>\"Nei\",0,1)","v":0},"Eksponering"]
[0,"Risikospredning (%)"]
[0,"Markedslikviditet (%)"]
[{"$f":"+IF($C$7<>\"Nei\",0,1)","v":0},"Risikospredning",{"$f":"C16*C15","v":0}]
[0,"Markedslikviditet",{"$f":"C17*C15","v":0}]
[null,"Bankportefølje"]
[null,"Ramme for tapspotensial"]
[null,"Tapspotensial",{"$f":"C23+C26+C27","v":0}]
[null,"Eksponering"]
[null,"Risikospredning (%)"]
[null,"Markedslikviditet (%)"]
[null,"Risikospredning",{"$f":"C24*C23","v":0}]
[null,"Markedslikviditet",{"$f":"C25*C23","v":0}]
[{"$f":"+IF($C$7<>\"Nei\",0,1)","v":0}]
[{"$f":"+IF($C$7<>\"Nei\",0,1)","v":0},"Samlet ramme for tapspotensial",{"$f":"C13+C21","v":0},null,{"$f":"+IF($C$7<>\"Nei\",0,1)","v":0}]
[{"$f":"+IF($C$7<>\"Nei\",0,1)","v":0},"Samlet tapspotensial",{"$f":"C14+C22","v":0},null,{"$f":"+IF($C$7<>\"Nei\",0,1)","v":0}]
[]
[null,"Definisjon av ramme \n- evt. henvisning til dokumentnavn fra arkfane \"Vedlegg\""]
[]
[null,"Liste over aksjeposisjoner som er unntatt i beregningen lastes opp i arkfane \"Vedlegg\""]
[]
[null,"Renterisiko","Beløp i tusen kr"]
[{"$f":"+IF($C$7<>\"Nei\",0,1)","v":0},"Handelsportefølje",null,null,{"$f":"+IF($C$7<>\"Nei\",0,1)","v":0}]
[{"$f":"+IF($C$7<>\"Nei\",0,1)","v":0},"Ramme for tapspotensial",null,null,{"$f":"+IF($C$7<>\"Nei\",0,1)","v":0}]
[{"$f":"+IF($C$7<>\"Nei\",0,1)","v":0},"Tapspotensial",{"$f":"C40+C43+C44","v":0},null,{"$f":"+IF($C$7<>\"Nei\",0,1)","v":0}]
[{"$f":"+IF($C$7<>\"Nei\",0,1)","v":0},"Eksponering"]
[0,"Risikospredning (%)"]
[0,"Markedslikviditet (%)"]
[0,"Risikospredning",{"$f":"C41*C40","v":0}]
[0,"Markedslikviditet",{"$f":"C42*C40","v":0}]
[null,"Bankportefølje"]
[null,"NII (effekt på resultatet)"]
[null,"Ramme for tapspotensial"]
[null,"Tapspotensial"]
[null,"EVE (effekt på egenkapitalen)"]
[null,"Ramme for tapspotensial"]
[null,"Tapspotensial",{"$f":"C52+C55+C56","v":0}]
[null,"Eksponering"]
[null,"Risikospredning (%)"]
[null,"Markedslikviditet (%)"]
[null,"Risikospredning",{"$f":"C53*C52","v":0}]
[null,"Markedslikviditet",{"$f":"C54*C52","v":0}]
[{"$f":"+IF($C$7<>\"Nei\",0,1)","v":0}]
[{"$f":"+IF($C$7<>\"Nei\",0,1)","v":0},"Samlet ramme for tapspotensial",{"$f":"C38+C50","v":0},null,{"$f":"+IF($C$7<>\"Nei\",0,1)","v":0}]
[{"$f":"+IF($C$7<>\"Nei\",0,1)","v":0},"Samlet tapspotensial",{"$f":"C39+C51","v":0},null,{"$f":"+IF($C$7<>\"Nei\",0,1)","v":0}]
[]
[null,"Definisjon av ramme \n- evt. henvisning til dokumentnavn fra arkfane \"Vedlegg\""]
[]
[null,"Valutarisiko","Beløp i tusen kr"]
[{"$f":"+IF($C$7<>\"Nei\",0,1)","v":0},"Handelsportefølje",null,null,{"$f":"+IF($C$7<>\"Nei\",0,1)","v":0}]
[{"$f":"+IF($C$7<>\"Nei\",0,1)","v":0},"Ramme for tapspotensial",null,null,{"$f":"+IF($C$7<>\"Nei\",0,1)","v":0}]
[{"$f":"+IF($C$7<>\"Nei\",0,1)","v":0},"Tapspotensial",{"$f":"C67+C70+C71","v":0},null,{"$f":"+IF($C$7<>\"Nei\",0,1)","v":0}]
[{"$f":"+IF($C$7<>\"Nei\",0,1)","v":0},"Eksponering"]
[0,"Risikospredning (%)"]
[0,"Markedslikviditet (%)"]
[0,"Risikospredning",{"$f":"C68*C67","v":0}]
[0,"Markedslikviditet",{"$f":"C69*C67","v":0}]
[null,"Bankportefølje"]
[null,"Ramme for tapspotensial"]
[null,"Tapspotensial",{"$f":"C75+C78+C79","v":0}]
[null,"Eksponering"]
[null,"Risikospredning (%)"]
[null,"Markedslikviditet (%)"]
[null,"Risikospredning",{"$f":"C76*C75","v":0}]
[null,"Markedslikviditet",{"$f":"C77*C75","v":0}]
[{"$f":"+IF($C$7<>\"Nei\",0,1)","v":0}]
[{"$f":"+IF($C$7<>\"Nei\",0,1)","v":0},"Samlet ramme for tapspotensial",{"$f":"C65+C73","v":0},null,{"$f":"+IF($C$7<>\"Nei\",0,1)","v":0}]
[{"$f":"+IF($C$7<>\"Nei\",0,1)","v":0},"Samlet tapspotensial",{"$f":"C66+C74","v":0},null,{"$f":"+IF($C$7<>\"Nei\",0,1)","v":0}]
[]
[null,"Definisjon av ramme \n- evt. henvisning til dokumentnavn fra arkfane \"Vedlegg\""]
[]
[null,"Eiendomsrisiko","Beløp i tusen kr"]
[null,"Bankportefølje"]
[null,"Ramme for tapspotensial"]
[null,"Bokført verdi"]
[null,"Markedsverdi"]
[null,"Tapspotensial",{"$f":"C92+C95+C96","v":0}]
[null,"Eksponering"]
[null,"Risikospredning (%)"]
[null,"Markedslikviditet (%)"]
[null,"Risikospredning",{"$f":"C93*C92","v":0}]
[null,"Markedslikviditet",{"$f":"C94*C92","v":0}]
[]
[null,"Definisjon av ramme \n- evt. henvisning til dokumentnavn fra arkfane \"Vedlegg\""]
[]
[null,"Kredittspreadrisiko - Bankportefølje"]
[null,"Rating","Markedsverdi (i tusen kr)","Gj.sn. løpetid"]
[null,"AAA"]
[null,"AA"]
[null,"A"]
[null,"BBB"]
[null,"BB"]
[null,"B"]
[null,"CCC-D"]
[null,"OMF (AAA)"]
[null,"OMF (AA)"]
[null,"Andre 0-vektere"]
[null,"Ikke ratet"]
[null,"Sum",{"$f":"SUM(C102:C112)","v":0},{"$f":"IF(COUNT(D102:D112)=0,0,C102/C113*D102+C103/C113*D103+C104/C113*D104+C105/C113*D105+C106/C113*D106+C107/C113*D107+C108/C113*D108+C109/C113*D109+C110/C113*D110+C112/C113*D112)","v":0}]
[]
[null,"0-vektere unntatt (AAA og AA-vektede statsobligasjoner)"]
[null,"\"Egne papirer\" "]
[null,"Andre unntatte papirer"]
[null,"Sum porteføljer unntatt",{"$f":"SUM(C115:C117)","v":0}]
[null,"Total likv.portefølje",{"$f":"C113+C118","v":0}]
[null,null,"Beløp i tusen kr"]
[null,"Ramme for tapspotensial"]
[null,"Tapspotensial etter 40% nedjustering",{"$f":"C123*60%","v":0}]
[null,"Tapspotensial iht. Solvens II-metodikk",{"$f":"C124+C127+C128","v":0}]
[null,"Eksponering",{"$f":"100%*'Beregningsgrunnlag Pilar 2'!E14","v":0}]
[null,"Risikospredning (%)"]
[null,"Markedslikviditet (%)"]
[null,"Risikospredning",{"$f":"C125*C124","v":0}]
[null,"Markedslikviditet",{"$f":"C126*C124","v":0}]
[]
[null,"Definisjon av ramme \n- evt. henvisning til dokumentnavn fra arkfane \"Vedlegg\""]
[]
[null,"Andre relevante opplysninger for Finanstilsynets vurdering av foretakets markedsrisikonivå, herunder markedsrisiko som ikke er omfattet av rapporteringen ovenfor:"]

{"sheet":"Vedlegg","index":2,"n_rows":4,"n_cols":3,"rows_kept":4,"cut":false,"hidden":false,"merged":[]}
[]
[null,null,"  <--  Last opp ett vedlegg om gangen."]
[]
[null,"Vedlegg:","Forklaring vedlegg:"]

{"sheet":"Beregningsgrunnlag Pilar 2","index":3,"n_rows":15,"n_cols":5,"rows_kept":15,"cut":false,"hidden":true,"merged":[[14,0,15,4]]}
[{"$f":"+IF(Skjema!B100=\"\",\"\",Skjema!B100)","v":"Kredittspreadrisiko - Bankportefølje"},{"$f":"+IF(Skjema!C100=\"\",\"\",Skjema!C100)","v":""},{"$f":"+IF(Skjema!D100=\"\",\"\",Skjema!D100)","v":""}]
[{"$f":"+IF(Skjema!B101=\"\",\"\",Skjema!B101)","v":"Rating"},{"$f":"+IF(Skjema!C101=\"\",\"\",Skjema!C101)","v":"Markedsverdi (i tusen kr)"},{"$f":"+IF(Skjema!D101=\"\",\"\",Skjema!D101)","v":"Gj.sn. løpetid"},"Påslag","Risiko*"]
[{"$f":"+IF(Skjema!B102=\"\",\"\",Skjema!B102)","v":"AAA"},{"$f":"+IF(Skjema!C102=\"\",0,Skjema!C102)","v":0},{"$f":"+IF(Skjema!D102=\"\",0,Skjema!D102)","v":0},8.9999999999999993E-3,{"$f":"B3*C3*D3","v":0}]
[{"$f":"+IF(Skjema!B103=\"\",\"\",Skjema!B103)","v":"AA"},{"$f":"+IF(Skjema!C103=\"\",0,Skjema!C103)","v":0},{"$f":"+IF(Skjema!D103=\"\",0,Skjema!D103)","v":0},1.0999999999999999E-2,{"$f":"B4*C4*D4","v":0}]
[{"$f":"+IF(Skjema!B104=\"\",\"\",Skjema!B104)","v":"A"},{"$f":"+IF(Skjema!C104=\"\",0,Skjema!C104)","v":0},{"$f":"+IF(Skjema!D104=\"\",0,Skjema!D104)","v":0},1.4E-2,0]
[{"$f":"+IF(Skjema!B105=\"\",\"\",Skjema!B105)","v":"BBB"},{"$f":"+IF(Skjema!C105=\"\",0,Skjema!C105)","v":0},{"$f":"+IF(Skjema!D105=\"\",0,Skjema!D105)","v":0},2.5000000000000001E-2,0]
[{"$f":"+IF(Skjema!B106=\"\",\"\",Skjema!B106)","v":"BB"},{"$f":"+IF(Skjema!C106=\"\",0,Skjema!C106)","v":0},{"$f":"+IF(Skjema!D106=\"\",0,Skjema!D106)","v":0},4.4999999999999998E-2,0]
[{"$f":"+IF(Skjema!B107=\"\",\"\",Skjema!B107)","v":"B"},{"$f":"+IF(Skjema!C107=\"\",0,Skjema!C107)","v":0},{"$f":"+IF(Skjema!D107=\"\",0,Skjema!D107)","v":0},7.4999999999999997E-2,0]
[{"$f":"+IF(Skjema!B108=\"\",\"\",Skjema!B108)","v":"CCC-D"},{"$f":"+IF(Skjema!C108=\"\",0,Skjema!C108)","v":0},{"$f":"+IF(Skjema!D108=\"\",0,Skjema!D108)","v":0},7.4999999999999997E-2,0]
[{"$f":"+IF(Skjema!B109=\"\",\"\",Skjema!B109)","v":"OMF (AAA)"},{"$f":"+IF(Skjema!C109=\"\",0,Skjema!C109)","v":0},{"$f":"+IF(Skjema!D109=\"\",0,Skjema!D109)","v":0},7.0000000000000001E-3,0]
[{"$f":"+IF(Skjema!B110=\"\",\"\",Skjema!B110)","v":"OMF (AA)"},{"$f":"+IF(Skjema!C110=\"\",0,Skjema!C110)","v":0},{"$f":"+IF(Skjema!D110=\"\",0,Skjema!D110)","v":0},8.9999999999999993E-3,0]
[{"$f":"+IF(Skjema!B111=\"\",\"\",Skjema!B111)","v":"Andre 0-vektere"},{"$f":"+IF(Skjema!C111=\"\",0,Skjema!C111)","v":0},{"$f":"+IF(Skjema!D111=\"\",0,Skjema!D111)","v":0},3.0000000000000001E-3,{"$f":"B12*C12*D12","v":0}]
[{"$f":"+IF(Skjema!B112=\"\",\"\",Skjema!B112)","v":"Ikke ratet"},{"$f":"+IF(Skjema!C112=\"\",0,Skjema!C112)","v":0},{"$f":"+IF(Skjema!D112=\"\",0,Skjema!D112)","v":0},0.03,0]
[{"$f":"+IF(Skjema!B113=\"\",\"\",Skjema!B113)","v":"Sum"},{"$f":"+IF(Skjema!C113=\"\",0,Skjema!C113)","v":0},{"$f":"+IF(Skjema!D113=\"\",0,Skjema!D113)","v":0},null,{"$f":"+SUM(E3:E13)","v":0}]
["*beregning iht. rundskriv 12/2016, vedlegg 3, avsnitt 4.5 'Spreadrisiko', tabell 2 'Spreadrisiko, sammenheng mellom rating og antatt spreadendring'"]

{"sheet":"Python","index":4,"n_rows":147,"n_cols":5,"rows_kept":147,"cut":false,"hidden":true,"merged":[]}
[{"$f":"+IF(Skjema!B1=\"\",\"\",Skjema!B1)","v":"Markedsrisiko: rammer og tapspotensial"},{"$f":"+IF(Skjema!C1=\"\",\"\",Skjema!C1)","v":""},{"$f":"+IF(Skjema!A1=\"\",\"\",Skjema!A1)","v":""},{"$f":"+IF(Skjema!D1=\"\",\"\",Skjema!D1)","v":""},""]
[{"$f":"+IF(Skjema!B2=\"\",\"\",Skjema!B2)","v":""},{"$f":"+IF(Skjema!C2=\"\",\"\",Skjema!C2)","v":""},{"$f":"+IF(Skjema!A2=\"\",\"\",Skjema!A2)","v":""},{"$f":"+IF(Skjema!D2=\"\",\"\",Skjema!D2)","v":""},""]
[{"$f":"+IF(Skjema!B3=\"\",\"\",Skjema!B3)","v":0},{"$f":"+IF(Skjema!C3=\"\",\"\",Skjema!C3)","v":0},{"$f":"+IF(Skjema!A3=\"\",\"\",Skjema!A3)","v":""},{"$f":"+IF(Skjema!D3=\"\",\"\",Skjema!D3)","v":""},""]
[{"$f":"+IF(Skjema!B4=\"\",\"\",Skjema!B4)","v":""},{"$f":"+IF(Skjema!C4=\"\",\"\",Skjema!C4)","v":""},{"$f":"+IF(Skjema!A4=\"\",\"\",Skjema!A4)","v":""},{"$f":"+IF(Skjema!D4=\"\",\"\",Skjema!D4)","v":""},""]
[{"$f":"+IF(Skjema!B5=\"\",\"\",Skjema!B5)","v":"Vurdering per:"},{"$f":"+IF(Skjema!C5=\"\",\"\",Skjema!C5)","v":""},"Var_ID","Var_Navn_lang","Var_Navn_kort"]
[{"$f":"+IF(Skjema!B6=\"\",\"\",Skjema!B6)","v":""},{"$f":"+IF(Skjema!C6=\"\",\"\",Skjema!C6)","v":""},{"$f":"+IF(Skjema!A6=\"\",\"\",Skjema!A6)","v":""}]
[{"$f":"+IF(Skjema!B7=\"\",\"\",Skjema!B7)","v":"Har foretaket handelsportefølje som det må stilles kapital for etter Pilar 1?"},{"$f":"+IF(Skjema!C7=\"\",\"\",Skjema!C7)","v":""},"mkr_1",{"$f":"A7","v":"Har foretaket handelsportefølje som det må stilles kapital for etter Pilar 1?"},"HandelPort_JaNei"]
[{"$f":"+IF(Skjema!B8=\"\",\"\",Skjema!B8)","v":""},{"$f":"+IF(Skjema!C8=\"\",\"\",Skjema!C8)","v":""},null,{"$f":"+IF(Skjema!D8=\"\",\"\",Skjema!D8)","v":""},""]
[{"$f":"+IF(Skjema!B9=\"\",\"\",Skjema!B9)","v":"Er noen av rammene endret siden siste rapportering?"},{"$f":"+IF(Skjema!C9=\"\",\"\",Skjema!C9)","v":""},"mkr_2",{"$f":"A9","v":"Er noen av rammene endret siden siste rapportering?"},"EndretRamme_JaNei"]
[{"$f":"+IF(Skjema!B10=\"\",\"\",Skjema!B10)","v":""},{"$f":"+IF(Skjema!C10=\"\",\"\",Skjema!C10)","v":""},null,{"$f":"+IF(Skjema!D10=\"\",\"\",Skjema!D10)","v":""},""]
[{"$f":"+IF(Skjema!B11=\"\",\"\",Skjema!B11)","v":"Aksjerisiko"},{"$f":"+IF(Skjema!C11=\"\",\"\",Skjema!C11)","v":"Beløp i tusen kr"},null,{"$f":"+IF(Skjema!D11=\"\",\"\",Skjema!D11)","v":""},""]
[{"$f":"+IF(Skjema!B12=\"\",\"\",Skjema!B12)","v":"Handelsportefølje"},{"$f":"+IF(Skjema!C12=\"\",\"\",Skjema!C12)","v":""},null,{"$f":"+IF(Skjema!D12=\"\",\"\",Skjema!D12)","v":""},""]
[{"$f":"+IF(Skjema!B13=\"\",\"\",Skjema!B13)","v":"Ramme for tapspotensial"},{"$f":"+IF(Skjema!C13=\"\",\"\",Skjema!C13)","v":""},"mkr_3",{"$f":"+$A$11&\"_\"&$A$12&\"_\"&A13","v":"Aksjerisiko_Handelsportefølje_Ramme for tapspotensial"},"AksjeRisk_HandelPort_RammeTapspot"]
[{"$f":"+IF(Skjema!B14=\"\",\"\",Skjema!B14)","v":"Tapspotensial"},{"$f":"+IF(Skjema!C14=\"\",\"\",Skjema!C14)","v":0},"mkr_4",{"$f":"+$A$11&\"_\"&$A$12&\"_\"&A14","v":"Aksjerisiko_Handelsportefølje_Tapspotensial"},"AksjeRisk_HandelPort_Tapspot"]
[{"$f":"+IF(Skjema!B15=\"\",\"\",Skjema!B15)","v":"Eksponering"},{"$f":"+IF(Skjema!C15=\"\",\"\",Skjema!C15)","v":""},"mkr_5","Aksjerisiko_Handelsportefølje_Eksponering","AksjeRisk_HandelPort_Eksponering"]
[{"$f":"+IF(Skjema!B16=\"\",\"\",Skjema!B16)","v":"Risikospredning (%)"},{"$f":"+IF(Skjema!C16=\"\",\"\",Skjema!C16)","v":""},"mkr_6","Aksjerisiko_Handelsportefølje_Risikospredning (%)","AksjeRisk_HandelPort_RiskSpredning%"]
[{"$f":"+IF(Skjema!B17=\"\",\"\",Skjema!B17)","v":"Markedslikviditet (%)"},{"$f":"+IF(Skjema!C17=\"\",\"\",Skjema!C17)","v":""},"mkr_7","Aksjerisiko_Handelsportefølje_Markedslikviditet (%)","AksjeRisk_HandelPort_Markedslikviditet%"]
[{"$f":"+IF(Skjema!B18=\"\",\"\",Skjema!B18)","v":"Risikospredning"},{"$f":"+IF(Skjema!C18=\"\",\"\",Skjema!C18)","v":0},"mkr_8","Aksjerisiko_Handelsportefølje_Risikospredning","AksjeRisk_HandelPort_RiskSpredning"]
[{"$f":"+IF(Skjema!B19=\"\",\"\",Skjema!B19)","v":"Markedslikviditet"},{"$f":"+IF(Skjema!C19=\"\",\"\",Skjema!C19)","v":0},"mkr_9","Aksjerisiko_Handelsportefølje_Markedslikviditet","AksjeRisk_HandelPort_Markedslikviditet"]
[{"$f":"+IF(Skjema!B20=\"\",\"\",Skjema!B20)","v":"Bankportefølje"},{"$f":"+IF(Skjema!C20=\"\",\"\",Skjema!C20)","v":""},null,{"$f":"+IF(Skjema!D20=\"\",\"\",Skjema!D20)","v":""},""]
[{"$f":"+IF(Skjema!B21=\"\",\"\",Skjema!B21)","v":"Ramme for tapspotensial"},{"$f":"+IF(Skjema!C21=\"\",\"\",Skjema!C21)","v":""},"mkr_10",{"$f":"+$A$11&\"_\"&$A$20&\"_\"&A21","v":"Aksjerisiko_Bankportefølje_Ramme for tapspotensial"},"AksjeRisk_BankPort_RammeTapspot"]
[{"$f":"+IF(Skjema!B22=\"\",\"\",Skjema!B22)","v":"Tapspotensial"},{"$f":"+IF(Skjema!C22=\"\",\"\",Skjema!C22)","v":0},"mkr_11",{"$f":"+$A$11&\"_\"&$A$20&\"_\"&A22","v":"Aksjerisiko_Bankportefølje_Tapspotensial"},"AksjeRisk_BankPort_Tapspot"]
[{"$f":"+IF(Skjema!B23=\"\",\"\",Skjema!B23)","v":"Eksponering"},{"$f":"+IF(Skjema!C23=\"\",\"\",Skjema!C23)","v":""},"mkr_12","Aksjerisiko_Bankportefølje_Eksponering","AksjeRisk_BankPort_Eksponering"]
[{"$f":"+IF(Skjema!B24=\"\",\"\",Skjema!B24)","v":"Risikospredning (%)"},{"$f":"+IF(Skjema!C24=\"\",\"\",Skjema!C24)","v":""},"mkr_13","Aksjerisiko_Bankportefølje_Risikospredning (%)","AksjeRisk_BankPort_RiskSpredning%"]
[{"$f":"+IF(Skjema!B25=\"\",\"\",Skjema!B25)","v":"Markedslikviditet (%)"},{"$f":"+IF(Skjema!C25=\"\",\"\",Skjema!C25)","v":""},"mkr_14","Aksjerisiko_Bankportefølje_Markedslikviditet (%)","AksjeRisk_BankPort_Markedslikviditet%"]
[{"$f":"+IF(Skjema!B26=\"\",\"\",Skjema!B26)","v":"Risikospredning"},{"$f":"+IF(Skjema!C26=\"\",\"\",Skjema!C26)","v":0},"mkr_15","Aksjerisiko_Bankportefølje_Risikospredning","AksjeRisk_BankPort_RiskSpredning"]
[{"$f":"+IF(Skjema!B27=\"\",\"\",Skjema!B27)","v":"Markedslikviditet"},{"$f":"+IF(Skjema!C27=\"\",\"\",Skjema!C27)","v":0},"mkr_16","Aksjerisiko_Bankportefølje_Markedslikviditet","AksjeRisk_BankPort_Markedslikviditet"]
[{"$f":"+IF(Skjema!B28=\"\",\"\",Skjema!B28)","v":""},{"$f":"+IF(Skjema!C28=\"\",\"\",Skjema!C28)","v":""},null,{"$f":"+IF(Skjema!D28=\"\",\"\",Skjema!D28)","v":""},""]
[{"$f":"+IF(Skjema!B29=\"\",\"\",Skjema!B29)","v":"Samlet ramme for tapspotensial"},{"$f":"+IF(Skjema!C29=\"\",\"\",Skjema!C29)","v":0},"mkr_17",{"$f":"+$A$11&\"_\"&A29","v":"Aksjerisiko_Samlet ramme for tapspotensial"},"AksjeRisk_SamletRammeTapspot"]
[{"$f":"+IF(Skjema!B30=\"\",\"\",Skjema!B30)","v":"Samlet tapspotensial"},{"$f":"+IF(Skjema!C30=\"\",\"\",Skjema!C30)","v":0},"mkr_18",{"$f":"+$A$11&\"_\"&A30","v":"Aksjerisiko_Samlet tapspotensial"},"AksjeRisk_SamletTapspot"]
[{"$f":"+IF(Skjema!B31=\"\",\"\",Skjema!B31)","v":""},{"$f":"+IF(Skjema!C31=\"\",\"\",Skjema!C31)","v":""},null,{"$f":"+IF(Skjema!D31=\"\",\"\",Skjema!D31)","v":""},""]
[{"$f":"+IF(Skjema!B32=\"\",\"\",Skjema!B32)","v":"Definisjon av ramme \n- evt. henvisning til dokumentnavn fra arkfane \"Vedlegg\""},{"$f":"+IF(Skjema!C32=\"\",\"\",Skjema!C32)","v":""},"mkr_19",{"$f":"+$A$11&\"_\"&A32","v":"Aksjerisiko_Definisjon av ramme \n- evt. henvisning til dokumentnavn fra arkfane \"Vedlegg\""},"AksjeRisk_DefRamme"]
[{"$f":"+IF(Skjema!B33=\"\",\"\",Skjema!B33)","v":""},{"$f":"+IF(Skjema!C33=\"\",\"\",Skjema!C33)","v":""},null,{"$f":"+IF(Skjema!D33=\"\",\"\",Skjema!D33)","v":""},""]
[{"$f":"+IF(Skjema!B34=\"\",\"\",Skjema!B34)","v":"Liste over aksjeposisjoner som er unntatt i beregningen lastes opp i arkfane \"Vedlegg\""},{"$f":"+IF(Skjema!C34=\"\",\"\",Skjema!C34)","v":""},null,{"$f":"+IF(Skjema!D34=\"\",\"\",Skjema!D34)","v":""},""]
[{"$f":"+IF(Skjema!B35=\"\",\"\",Skjema!B35)","v":""},{"$f":"+IF(Skjema!C35=\"\",\"\",Skjema!C35)","v":""},null,{"$f":"+IF(Skjema!D35=\"\",\"\",Skjema!D35)","v":""},""]
[{"$f":"+IF(Skjema!B36=\"\",\"\",Skjema!B36)","v":"Renterisiko"},{"$f":"+IF(Skjema!C36=\"\",\"\",Skjema!C36)","v":"Beløp i tusen kr"},null,{"$f":"+IF(Skjema!D36=\"\",\"\",Skjema!D36)","v":""},""]
[{"$f":"+IF(Skjema!B37=\"\",\"\",Skjema!B37)","v":"Handelsportefølje"},{"$f":"+IF(Skjema!C37=\"\",\"\",Skjema!C37)","v":""},null,{"$f":"+IF(Skjema!D37=\"\",\"\",Skjema!D37)","v":""},""]
[{"$f":"+IF(Skjema!B38=\"\",\"\",Skjema!B38)","v":"Ramme for tapspotensial"},{"$f":"+IF(Skjema!C38=\"\",\"\",Skjema!C38)","v":""},"mkr_20",{"$f":"+$A$36&\"_\"&$A$37&\"_\"&A38","v":"Renterisiko_Handelsportefølje_Ramme for tapspotensial"},"RenteRisk_HandelPort_RammeTapspot"]
[{"$f":"+IF(Skjema!B39=\"\",\"\",Skjema!B39)","v":"Tapspotensial"},{"$f":"+IF(Skjema!C39=\"\",\"\",Skjema!C39)","v":0},"mkr_21",{"$f":"+$A$36&\"_\"&$A$37&\"_\"&A39","v":"Renterisiko_Handelsportefølje_Tapspotensial"},"RenteRisk_HandelPort_Tapspot"]
[{"$f":"+IF(Skjema!B40=\"\",\"\",Skjema!B40)","v":"Eksponering"},{"$f":"+IF(Skjema!C40=\"\",\"\",Skjema!C40)","v":""},"mkr_22","Renterisiko_Handelsportefølje_Eksponering","RenteRisk_HandelPort_Eksponering"]
[{"$f":"+IF(Skjema!B41=\"\",\"\",Skjema!B41)","v":"Risikospredning (%)"},{"$f":"+IF(Skjema!C41=\"\",\"\",Skjema!C41)","v":""},"mkr_23","Renterisiko_Handelsportefølje_Risikospredning (%)","RenteRisk_HandelPort_RiskSpredning%"]
[{"$f":"+IF(Skjema!B42=\"\",\"\",Skjema!B42)","v":"Markedslikviditet (%)"},{"$f":"+IF(Skjema!C42=\"\",\"\",Skjema!C42)","v":""},"mkr_24","Renterisiko_Handelsportefølje_Markedslikviditet (%)","RenteRisk_HandelPort_Markedslikviditet%"]
[{"$f":"+IF(Skjema!B43=\"\",\"\",Skjema!B43)","v":"Risikospredning"},{"$f":"+IF(Skjema!C43=\"\",\"\",Skjema!C43)","v":0},"mkr_25","Renterisiko_Handelsportefølje_Risikospredning","RenteRisk_HandelPort_RiskSpredning"]
[{"$f":"+IF(Skjema!B44=\"\",\"\",Skjema!B44)","v":"Markedslikviditet"},{"$f":"+IF(Skjema!C44=\"\",\"\",Skjema!C44)","v":0},"mkr_26","Renterisiko_Handelsportefølje_Markedslikviditet","RenteRisk_HandelPort_Markedslikviditet"]
[{"$f":"+IF(Skjema!B45=\"\",\"\",Skjema!B45)","v":"Bankportefølje"},{"$f":"+IF(Skjema!C45=\"\",\"\",Skjema!C45)","v":""},null,{"$f":"+IF(Skjema!D45=\"\",\"\",Skjema!D45)","v":""},""]
[{"$f":"+IF(Skjema!B46=\"\",\"\",Skjema!B46)","v":"NII (effekt på resultatet)"},{"$f":"+IF(Skjema!C46=\"\",\"\",Skjema!C46)","v":""}]
[{"$f":"+IF(Skjema!B47=\"\",\"\",Skjema!B47)","v":"Ramme for tapspotensial"},{"$f":"+IF(Skjema!C47=\"\",\"\",Skjema!C47)","v":""},"mkr_27",{"$f":"+$A$36&\"_\"&$A$45&\"_\"&$A$46&\"_\"&A47","v":"Renterisiko_Bankportefølje_NII (effekt på resultatet)_Ramme for tapspotensial"},"RenteRisk_BankPort_NII_RammeTapspot"]
[{"$f":"+IF(Skjema!B48=\"\",\"\",Skjema!B48)","v":"Tapspotensial"},{"$f":"+IF(Skjema!C48=\"\",\"\",Skjema!C48)","v":""},"mkr_28",{"$f":"+$A$36&\"_\"&$A$45&\"_\"&$A$46&\"_\"&A48","v":"Renterisiko_Bankportefølje_NII (effekt på resultatet)_Tapspotensial"},"RenteRisk_BankPort_NII_Tapspot"]
[{"$f":"+IF(Skjema!B49=\"\",\"\",Skjema!B49)","v":"EVE (effekt på egenkapitalen)"},{"$f":"+IF(Skjema!C49=\"\",\"\",Skjema!C49)","v":""}]
[{"$f":"+IF(Skjema!B50=\"\",\"\",Skjema!B50)","v":"Ramme for tapspotensial"},{"$f":"+IF(Skjema!C50=\"\",\"\",Skjema!C50)","v":""},"mkr_29",{"$f":"+$A$36&\"_\"&$A$45&\"_\"&$A$49&\"_\"&A50","v":"Renterisiko_Bankportefølje_EVE (effekt på egenkapitalen)_Ramme for tapspotensial"},"RenteRisk_BankPort_EVE_RammeTapspot"]
[{"$f":"+IF(Skjema!B51=\"\",\"\",Skjema!B51)","v":"Tapspotensial"},{"$f":"+IF(Skjema!C51=\"\",\"\",Skjema!C51)","v":0},"mkr_30",{"$f":"+$A$36&\"_\"&$A$45&\"_\"&$A$49&\"_\"&A51","v":"Renterisiko_Bankportefølje_EVE (effekt på egenkapitalen)_Tapspotensial"},"RenteRisk_BankPort_EVE_Tapspot"]
[{"$f":"+IF(Skjema!B52=\"\",\"\",Skjema!B52)","v":"Eksponering"},{"$f":"+IF(Skjema!C52=\"\",\"\",Skjema!C52)","v":""},"mkr_31","Renterisiko_Bankportefølje_EVE (effekt på egenkapitalen)_Eksponering","RenteRisk_BankPort_EVE_Eksponering"]
[{"$f":"+IF(Skjema!B53=\"\",\"\",Skjema!B53)","v":"Risikospredning (%)"},{"$f":"+IF(Skjema!C53=\"\",\"\",Skjema!C53)","v":""},"mkr_32","Renterisiko_Bankportefølje_EVE (effekt på egenkapitalen)_Risikospredning (%)","RenteRisk_BankPort_EVE_RiskSpredning%"]
[{"$f":"+IF(Skjema!B54=\"\",\"\",Skjema!B54)","v":"Markedslikviditet (%)"},{"$f":"+IF(Skjema!C54=\"\",\"\",Skjema!C54)","v":""},"mkr_33","Renterisiko_Bankportefølje_EVE (effekt på egenkapitalen)_Markedslikviditet (%)","RenteRisk_BankPort_EVE_Markedslikviditet%"]
[{"$f":"+IF(Skjema!B55=\"\",\"\",Skjema!B55)","v":"Risikospredning"},{"$f":"+IF(Skjema!C55=\"\",\"\",Skjema!C55)","v":0},"mkr_34","Renterisiko_Bankportefølje_EVE (effekt på egenkapitalen)_Risikospredning","RenteRisk_BankPort_EVE_RiskSpredning"]
[{"$f":"+IF(Skjema!B56=\"\",\"\",Skjema!B56)","v":"Markedslikviditet"},{"$f":"+IF(Skjema!C56=\"\",\"\",Skjema!C56)","v":0},"mkr_35","Renterisiko_Bankportefølje_EVE (effekt på egenkapitalen)_Markedslikviditet","RenteRisk_BankPort_EVE_Markedslikviditet"]
[{"$f":"+IF(Skjema!B57=\"\",\"\",Skjema!B57)","v":""},{"$f":"+IF(Skjema!C57=\"\",\"\",Skjema!C57)","v":""}]
[{"$f":"+IF(Skjema!B58=\"\",\"\",Skjema!B58)","v":"Samlet ramme for tapspotensial"},{"$f":"+IF(Skjema!C58=\"\",\"\",Skjema!C58)","v":0},"mkr_36",{"$f":"+$A$36&\"_\"&A58","v":"Renterisiko_Samlet ramme for tapspotensial"},"RenteRisk_SamletRammeTapspot"]
[{"$f":"+IF(Skjema!B59=\"\",\"\",Skjema!B59)","v":"Samlet tapspotensial"},{"$f":"+IF(Skjema!C59=\"\",\"\",Skjema!C59)","v":0},"mkr_37",{"$f":"+$A$36&\"_\"&A59","v":"Renterisiko_Samlet tapspotensial"},"RenteRisk_SamletTapspot"]
[{"$f":"+IF(Skjema!B60=\"\",\"\",Skjema!B60)","v":""},{"$f":"+IF(Skjema!C60=\"\",\"\",Skjema!C60)","v":""}]
[{"$f":"+IF(Skjema!B61=\"\",\"\",Skjema!B61)","v":"Definisjon av ramme \n- evt. henvisning til dokumentnavn fra arkfane \"Vedlegg\""},{"$f":"+IF(Skjema!C61=\"\",\"\",Skjema!C61)","v":""},"mkr_38",{"$f":"+$A$36&\"_\"&A61","v":"Renterisiko_Definisjon av ramme \n- evt. henvisning til dokumentnavn fra arkfane \"Vedlegg\""},"RenteRisk_DefRamme"]
[{"$f":"+IF(Skjema!B62=\"\",\"\",Skjema!B62)","v":""},{"$f":"+IF(Skjema!C62=\"\",\"\",Skjema!C62)","v":""},null,{"$f":"+IF(Skjema!D62=\"\",\"\",Skjema!D62)","v":""},""]
[{"$f":"+IF(Skjema!B63=\"\",\"\",Skjema!B63)","v":"Valutarisiko"},{"$f":"+IF(Skjema!C63=\"\",\"\",Skjema!C63)","v":"Beløp i tusen kr"},null,{"$f":"+IF(Skjema!D63=\"\",\"\",Skjema!D63)","v":""},""]
[{"$f":"+IF(Skjema!B64=\"\",\"\",Skjema!B64)","v":"Handelsportefølje"},{"$f":"+IF(Skjema!C64=\"\",\"\",Skjema!C64)","v":""},null,{"$f":"+IF(Skjema!D64=\"\",\"\",Skjema!D64)","v":""},""]
[{"$f":"+IF(Skjema!B65=\"\",\"\",Skjema!B65)","v":"Ramme for tapspotensial"},{"$f":"+IF(Skjema!C65=\"\",\"\",Skjema!C65)","v":""},"mkr_39",{"$f":"+$A$63&\"_\"&$A$64&\"_\"&A65","v":"Valutarisiko_Handelsportefølje_Ramme for tapspotensial"},"ValRisk_HandelPort_RammeTapspot"]
[{"$f":"+IF(Skjema!B66=\"\",\"\",Skjema!B66)","v":"Tapspotensial"},{"$f":"+IF(Skjema!C66=\"\",\"\",Skjema!C66)","v":0},"mkr_40",{"$f":"+$A$63&\"_\"&$A$64&\"_\"&A66","v":"Valutarisiko_Handelsportefølje_Tapspotensial"},"ValRisk_HandelPort_Tapspot"]
[{"$f":"+IF(Skjema!B67=\"\",\"\",Skjema!B67)","v":"Eksponering"},{"$f":"+IF(Skjema!C67=\"\",\"\",Skjema!C67)","v":""},"mkr_41","Valutarisiko_Handelsportefølje_Eksponering","ValRisk_HandelPort_Eksponering"]
[{"$f":"+IF(Skjema!B68=\"\",\"\",Skjema!B68)","v":"Risikospredning (%)"},{"$f":"+IF(Skjema!C68=\"\",\"\",Skjema!C68)","v":""},"mkr_42","Valutarisiko_Handelsportefølje_Risikospredning (%)","ValRisk_HandelPort_RiskSpredning%"]
[{"$f":"+IF(Skjema!B69=\"\",\"\",Skjema!B69)","v":"Markedslikviditet (%)"},{"$f":"+IF(Skjema!C69=\"\",\"\",Skjema!C69)","v":""},"mkr_43","Valutarisiko_Handelsportefølje_Markedslikviditet (%)","ValRisk_HandelPort_Markedslikviditet%"]
[{"$f":"+IF(Skjema!B70=\"\",\"\",Skjema!B70)","v":"Risikospredning"},{"$f":"+IF(Skjema!C70=\"\",\"\",Skjema!C70)","v":0},"mkr_44","Valutarisiko_Handelsportefølje_Risikospredning","ValRisk_HandelPort_RiskSpredning"]
[{"$f":"+IF(Skjema!B71=\"\",\"\",Skjema!B71)","v":"Markedslikviditet"},{"$f":"+IF(Skjema!C71=\"\",\"\",Skjema!C71)","v":0},"mkr_45","Valutarisiko_Handelsportefølje_Markedslikviditet","ValRisk_HandelPort_Markedslikviditet"]
[{"$f":"+IF(Skjema!B72=\"\",\"\",Skjema!B72)","v":"Bankportefølje"},{"$f":"+IF(Skjema!C72=\"\",\"\",Skjema!C72)","v":""},null,{"$f":"+IF(Skjema!D72=\"\",\"\",Skjema!D72)","v":""},""]
[{"$f":"+IF(Skjema!B73=\"\",\"\",Skjema!B73)","v":"Ramme for tapspotensial"},{"$f":"+IF(Skjema!C73=\"\",\"\",Skjema!C73)","v":""},"mkr_46",{"$f":"+$A$63&\"_\"&$A$72&\"_\"&A73","v":"Valutarisiko_Bankportefølje_Ramme for tapspotensial"},"ValRisk_BankPort_RammeTapspot"]
[{"$f":"+IF(Skjema!B74=\"\",\"\",Skjema!B74)","v":"Tapspotensial"},{"$f":"+IF(Skjema!C74=\"\",\"\",Skjema!C74)","v":0},"mkr_47",{"$f":"+$A$63&\"_\"&$A$72&\"_\"&A74","v":"Valutarisiko_Bankportefølje_Tapspotensial"},"ValRisk_BankPort_Tapspot"]
[{"$f":"+IF(Skjema!B75=\"\",\"\",Skjema!B75)","v":"Eksponering"},{"$f":"+IF(Skjema!C75=\"\",\"\",Skjema!C75)","v":""},"mkr_48","Valutarisiko_Bankportefølje_Eksponering","ValRisk_BankPort_Eksponering"]
[{"$f":"+IF(Skjema!B76=\"\",\"\",Skjema!B76)","v":"Risikospredning (%)"},{"$f":"+IF(Skjema!C76=\"\",\"\",Skjema!C76)","v":""},"mkr_49","Valutarisiko_Bankportefølje_Risikospredning (%)","ValRisk_BankPort_RiskSpredning%"]
[{"$f":"+IF(Skjema!B77=\"\",\"\",Skjema!B77)","v":"Markedslikviditet (%)"},{"$f":"+IF(Skjema!C77=\"\",\"\",Skjema!C77)","v":""},"mkr_50","Valutarisiko_Bankportefølje_Markedslikviditet (%)","ValRisk_BankPort_Markedslikviditet%"]
[{"$f":"+IF(Skjema!B78=\"\",\"\",Skjema!B78)","v":"Risikospredning"},{"$f":"+IF(Skjema!C78=\"\",\"\",Skjema!C78)","v":0},"mkr_51","Valutarisiko_Bankportefølje_Risikospredning","ValRisk_BankPort_RiskSpredning"]
[{"$f":"+IF(Skjema!B79=\"\",\"\",Skjema!B79)","v":"Markedslikviditet"},{"$f":"+IF(Skjema!C79=\"\",\"\",Skjema!C79)","v":0},"mkr_52","Valutarisiko_Bankportefølje_Markedslikviditet","ValRisk_BankPort_Markedslikviditet"]
[{"$f":"+IF(Skjema!B80=\"\",\"\",Skjema!B80)","v":""},{"$f":"+IF(Skjema!C80=\"\",\"\",Skjema!C80)","v":""},null,{"$f":"+IF(Skjema!D80=\"\",\"\",Skjema!D80)","v":""},""]
[{"$f":"+IF(Skjema!B81=\"\",\"\",Skjema!B81)","v":"Samlet ramme for tapspotensial"},{"$f":"+IF(Skjema!C81=\"\",\"\",Skjema!C81)","v":0},"mkr_53",{"$f":"+$A$63&\"_\"&A81","v":"Valutarisiko_Samlet ramme for tapspotensial"},"ValRisk_SamletRammeTapspot"]
[{"$f":"+IF(Skjema!B82=\"\",\"\",Skjema!B82)","v":"Samlet tapspotensial"},{"$f":"+IF(Skjema!C82=\"\",\"\",Skjema!C82)","v":0},"mkr_54",{"$f":"+$A$63&\"_\"&A82","v":"Valutarisiko_Samlet tapspotensial"},"ValRisk_SamletTapspot"]
[{"$f":"+IF(Skjema!B83=\"\",\"\",Skjema!B83)","v":""},{"$f":"+IF(Skjema!C83=\"\",\"\",Skjema!C83)","v":""},null,{"$f":"+IF(Skjema!D83=\"\",\"\",Skjema!D83)","v":""},""]
[{"$f":"+IF(Skjema!B84=\"\",\"\",Skjema!B84)","v":"Definisjon av ramme \n- evt. henvisning til dokumentnavn fra arkfane \"Vedlegg\""},{"$f":"+IF(Skjema!C84=\"\",\"\",Skjema!C84)","v":""},"mkr_55",{"$f":"+$A$63&\"_\"&A84","v":"Valutarisiko_Definisjon av ramme \n- evt. henvisning til dokumentnavn fra arkfane \"Vedlegg\""},"ValRisk_DefRamme"]
[{"$f":"+IF(Skjema!B85=\"\",\"\",Skjema!B85)","v":""},{"$f":"+IF(Skjema!C85=\"\",\"\",Skjema!C85)","v":""},null,{"$f":"+IF(Skjema!D85=\"\",\"\",Skjema!D85)","v":""},""]
[{"$f":"+IF(Skjema!B86=\"\",\"\",Skjema!B86)","v":"Eiendomsrisiko"},{"$f":"+IF(Skjema!C86=\"\",\"\",Skjema!C86)","v":"Beløp i tusen kr"},null,{"$f":"+IF(Skjema!D86=\"\",\"\",Skjema!D86)","v":""},""]
[{"$f":"+IF(Skjema!B87=\"\",\"\",Skjema!B87)","v":"Bankportefølje"},{"$f":"+IF(Skjema!C87=\"\",\"\",Skjema!C87)","v":""},null,{"$f":"+IF(Skjema!D87=\"\",\"\",Skjema!D87)","v":""},""]
[{"$f":"+IF(Skjema!B88=\"\",\"\",Skjema!B88)","v":"Ramme for tapspotensial"},{"$f":"+IF(Skjema!C88=\"\",\"\",Skjema!C88)","v":""},"mkr_56",{"$f":"+$A$86&\"_\"&$A$87&\"_\"&A88","v":"Eiendomsrisiko_Bankportefølje_Ramme for tapspotensial"},"EieRisk_BankPort_RammeTapspot"]
[{"$f":"+IF(Skjema!B89=\"\",\"\",Skjema!B89)","v":"Bokført verdi"},{"$f":"+IF(Skjema!C89=\"\",\"\",Skjema!C89)","v":""},"mkr_57",{"$f":"+$A$86&\"_\"&$A$87&\"_\"&A89","v":"Eiendomsrisiko_Bankportefølje_Bokført verdi"},"EieRisk_BankPort_BokfVerdi"]
[{"$f":"+IF(Skjema!B90=\"\",\"\",Skjema!B90)","v":"Markedsverdi"},{"$f":"+IF(Skjema!C90=\"\",\"\",Skjema!C90)","v":""},"mkr_58","Eiendomsrisiko_Bankportefølje_Markedsverdi","EieRisk_BankPort_Markedsverdi"]
[{"$f":"+IF(Skjema!B91=\"\",\"\",Skjema!B91)","v":"Tapspotensial"},{"$f":"+IF(Skjema!C91=\"\",\"\",Skjema!C91)","v":0},"mkr_59","Eiendomsrisiko_Bankportefølje_Tapspotensial","EieRisk_BankPort_Tapspot"]
[{"$f":"+IF(Skjema!B92=\"\",\"\",Skjema!B92)","v":"Eksponering"},{"$f":"+IF(Skjema!C92=\"\",\"\",Skjema!C92)","v":""},"mkr_60","Eiendomsrisiko_Bankportefølje_Eksponering","EieRisk_BankPort_Eksponering"]
[{"$f":"+IF(Skjema!B93=\"\",\"\",Skjema!B93)","v":"Risikospredning (%)"},{"$f":"+IF(Skjema!C93=\"\",\"\",Skjema!C93)","v":""},"mkr_61","Eiendomsrisiko_Bankportefølje_Risikospredning (%)","EieRisk_BankPort_RiskSpredning%"]
[{"$f":"+IF(Skjema!B94=\"\",\"\",Skjema!B94)","v":"Markedslikviditet (%)"},{"$f":"+IF(Skjema!C94=\"\",\"\",Skjema!C94)","v":""},"mkr_62","Eiendomsrisiko_Bankportefølje_Markedslikviditet (%)","EieRisk_BankPort_Markedslikviditet%"]
[{"$f":"+IF(Skjema!B95=\"\",\"\",Skjema!B95)","v":"Risikospredning"},{"$f":"+IF(Skjema!C95=\"\",\"\",Skjema!C95)","v":0},"mkr_63","Eiendomsrisiko_Bankportefølje_Risikospredning","EieRisk_BankPort_RiskSpredning"]
[{"$f":"+IF(Skjema!B96=\"\",\"\",Skjema!B96)","v":"Markedslikviditet"},{"$f":"+IF(Skjema!C96=\"\",\"\",Skjema!C96)","v":0},"mkr_64","Eiendomsrisiko_Bankportefølje_Markedslikviditet","EieRisk_BankPort_Markedslikviditet"]
[{"$f":"+IF(Skjema!B97=\"\",\"\",Skjema!B97)","v":""},{"$f":"+IF(Skjema!C97=\"\",\"\",Skjema!C97)","v":""},null,{"$f":"+IF(Skjema!D97=\"\",\"\",Skjema!D97)","v":""},""]
[{"$f":"+IF(Skjema!B98=\"\",\"\",Skjema!B98)","v":"Definisjon av ramme \n- evt. henvisning til dokumentnavn fra arkfane \"Vedlegg\""},{"$f":"+IF(Skjema!C98=\"\",\"\",Skjema!C98)","v":""},"mkr_65","Eiendomsrisiko_Bankportefølje_Definisjon av ramme \n- evt. henvisning til dokumentnavn fra arkfane \"Vedlegg\"","EieRisk_BankPort_DefRamme"]
[{"$f":"+IF(Skjema!B99=\"\",\"\",Skjema!B99)","v":""},{"$f":"+IF(Skjema!C99=\"\",\"\",Skjema!C99)","v":""},null,{"$f":"+IF(Skjema!D99=\"\",\"\",Skjema!D99)","v":""},""]
[{"$f":"+IF(Skjema!B100=\"\",\"\",Skjema!B100)","v":"Kredittspreadrisiko - Bankportefølje"},{"$f":"+IF(Skjema!C100=\"\",\"\",Skjema!C100)","v":""},null,{"$f":"+IF(Skjema!D100=\"\",\"\",Skjema!D100)","v":""},""]
[{"$f":"+IF(Skjema!B101=\"\",\"\",Skjema!B101)","v":"Rating"},{"$f":"+IF(Skjema!C101=\"\",\"\",Skjema!C101)","v":"Markedsverdi (i tusen kr)"}]
[{"$f":"+IF(Skjema!B102=\"\",\"\",Skjema!B102)","v":"AAA"},{"$f":"+IF(Skjema!C102=\"\",\"\",Skjema!C102)","v":""},"mkr_66",{"$f":"+$A$100&\"_\"&$B$101&\"_\"&A102","v":"Kredittspreadrisiko - Bankportefølje_Markedsverdi (i tusen kr)_AAA"},"KredRisk_BankPort_MarkedsVerdi_AAA"]
[{"$f":"+IF(Skjema!B103=\"\",\"\",Skjema!B103)","v":"AA"},{"$f":"+IF(Skjema!C103=\"\",\"\",Skjema!C103)","v":""},"mkr_67",{"$f":"+$A$100&\"_\"&$B$101&\"_\"&A103","v":"Kredittspreadrisiko - Bankportefølje_Markedsverdi (i tusen kr)_AA"},"KredRisk_BankPort_MarkedsVerdi_AA"]
[{"$f":"+IF(Skjema!B104=\"\",\"\",Skjema!B104)","v":"A"},{"$f":"+IF(Skjema!C104=\"\",\"\",Skjema!C104)","v":""},"mkr_68","Kredittspreadrisiko - Bankportefølje_Markedsverdi (i tusen kr)_A","KredRisk_BankPort_MarkedsVerdi_A"]
[{"$f":"+IF(Skjema!B105=\"\",\"\",Skjema!B105)","v":"BBB"},{"$f":"+IF(Skjema!C105=\"\",\"\",Skjema!C105)","v":""},"mkr_69","Kredittspreadrisiko - Bankportefølje_Markedsverdi (i tusen kr)_BBB","KredRisk_BankPort_MarkedsVerdi_BBB"]
[{"$f":"+IF(Skjema!B106=\"\",\"\",Skjema!B106)","v":"BB"},{"$f":"+IF(Skjema!C106=\"\",\"\",Skjema!C106)","v":""},"mkr_70","Kredittspreadrisiko - Bankportefølje_Markedsverdi (i tusen kr)_BB","KredRisk_BankPort_MarkedsVerdi_BB"]
[{"$f":"+IF(Skjema!B107=\"\",\"\",Skjema!B107)","v":"B"},{"$f":"+IF(Skjema!C107=\"\",\"\",Skjema!C107)","v":""},"mkr_71","Kredittspreadrisiko - Bankportefølje_Markedsverdi (i tusen kr)_B","KredRisk_BankPort_MarkedsVerdi_B"]
[{"$f":"+IF(Skjema!B108=\"\",\"\",Skjema!B108)","v":"CCC-D"},{"$f":"+IF(Skjema!C108=\"\",\"\",Skjema!C108)","v":""},"mkr_72","Kredittspreadrisiko - Bankportefølje_Markedsverdi (i tusen kr)_CCC-D","KredRisk_BankPort_MarkedsVerdi_CCC-D"]
[{"$f":"+IF(Skjema!B109=\"\",\"\",Skjema!B109)","v":"OMF (AAA)"},{"$f":"+IF(Skjema!C109=\"\",\"\",Skjema!C109)","v":""},"mkr_73","Kredittspreadrisiko - Bankportefølje_Markedsverdi (i tusen kr)_OMF (AAA)","KredRisk_BankPort_MarkedsVerdi_OMF(AAA)"]
[{"$f":"+IF(Skjema!B110=\"\",\"\",Skjema!B110)","v":"OMF (AA)"},{"$f":"+IF(Skjema!C110=\"\",\"\",Skjema!C110)","v":""},"mkr_74","Kredittspreadrisiko - Bankportefølje_Markedsverdi (i tusen kr)_OMF (AA)","KredRisk_BankPort_MarkedsVerdi_OMF(AA)"]
[{"$f":"+IF(Skjema!B111=\"\",\"\",Skjema!B111)","v":"Andre 0-vektere"},{"$f":"+IF(Skjema!C111=\"\",\"\",Skjema!C111)","v":""},"mkr_106",{"$f":"+$A$100&\"_\"&$B$101&\"_\"&A111","v":"Kredittspreadrisiko - Bankportefølje_Markedsverdi (i tusen kr)_Andre 0-vektere"},"KredRisk_BankPort_MarkedsVerdi_Andre0-vektere"]
[{"$f":"+IF(Skjema!B112=\"\",\"\",Skjema!B112)","v":"Ikke ratet"},{"$f":"+IF(Skjema!C112=\"\",\"\",Skjema!C112)","v":""},"mkr_75","Kredittspreadrisiko - Bankportefølje_Markedsverdi (i tusen kr)_Ikke ratet","KredRisk_BankPort_MarkedsVerdi_IkkeRatet"]
[{"$f":"+IF(Skjema!B113=\"\",\"\",Skjema!B113)","v":"Sum"},{"$f":"+IF(Skjema!C113=\"\",\"\",Skjema!C113)","v":0},"mkr_76","Kredittspreadrisiko - Bankportefølje_Markedsverdi (i tusen kr)_Sum","KredRisk_BankPort_MarkedsVerdi_Sum"]
[{"$f":"+IF(Skjema!B114=\"\",\"\",Skjema!B114)","v":""},{"$f":"+IF(Skjema!C114=\"\",\"\",Skjema!C114)","v":""}]
[{"$f":"+IF(Skjema!B115=\"\",\"\",Skjema!B115)","v":"0-vektere unntatt (AAA og AA-vektede statsobligasjoner)"},{"$f":"+IF(Skjema!C115=\"\",\"\",Skjema!C115)","v":""},"mkr_77",{"$f":"+$A$100&\"_\"&$B$101&\"_\"&A115","v":"Kredittspreadrisiko - Bankportefølje_Markedsverdi (i tusen kr)_0-vektere unntatt (AAA og AA-vektede statsobligasjoner)"},"KredRisk_BankPort_MarkedsVerdi_0-vektereUnntatt"]
[{"$f":"+IF(Skjema!B116=\"\",\"\",Skjema!B116)","v":"\"Egne papirer\" "},{"$f":"+IF(Skjema!C116=\"\",\"\",Skjema!C116)","v":""},"mkr_79","Kredittspreadrisiko - Bankportefølje_Markedsverdi (i tusen kr)_\"Egne papirer\" ","KredRisk_BankPort_MarkedsVerdi_EgnePapirer"]
[{"$f":"+IF(Skjema!B117=\"\",\"\",Skjema!B117)","v":"Andre unntatte papirer"},{"$f":"+IF(Skjema!C117=\"\",\"\",Skjema!C117)","v":""},"mkr_80","Kredittspreadrisiko - Bankportefølje_Markedsverdi (i tusen kr)_Andre unntatte papirer","KredRisk_BankPort_MarkedsVerdi_AndreUnntattPapir"]
[{"$f":"+A101","v":"Rating"},{"$f":"+IF(Skjema!D101=\"\",\"\",Skjema!D101)","v":"Gj.sn. løpetid"}]
["AAA",{"$f":"+IF(Skjema!D102=\"\",\"\",Skjema!D102)","v":""},"mkr_81",{"$f":"+$A$100&\"_\"&$B$118&\"_\"&A119","v":"Kredittspreadrisiko - Bankportefølje_Gj.sn. løpetid_AAA"},"KredRisk_BankPort_Gj_lopetid_AAA"]
["AA",{"$f":"+IF(Skjema!D103=\"\",\"\",Skjema!D103)","v":""},"mkr_82","Kredittspreadrisiko - Bankportefølje_Gj.sn. løpetid_AA","KredRisk_BankPort_Gj_lopetid_AA"]
["A",{"$f":"+IF(Skjema!D104=\"\",\"\",Skjema!D104)","v":""},"mkr_83","Kredittspreadrisiko - Bankportefølje_Gj.sn. løpetid_A","KredRisk_BankPort_Gj_lopetid_A"]
["BBB",{"$f":"+IF(Skjema!D105=\"\",\"\",Skjema!D105)","v":""},"mkr_84","Kredittspreadrisiko - Bankportefølje_Gj.sn. løpetid_BBB","KredRisk_BankPort_Gj_lopetid_BBB"]
["BB",{"$f":"+IF(Skjema!D106=\"\",\"\",Skjema!D106)","v":""},"mkr_85","Kredittspreadrisiko - Bankportefølje_Gj.sn. løpetid_BB","KredRisk_BankPort_Gj_lopetid_BB"]
["B",{"$f":"+IF(Skjema!D107=\"\",\"\",Skjema!D107)","v":""},"mkr_86","Kredittspreadrisiko - Bankportefølje_Gj.sn. løpetid_B","KredRisk_BankPort_Gj_lopetid_B"]
["CCC-D",{"$f":"+IF(Skjema!D108=\"\",\"\",Skjema!D108)","v":""},"mkr_87","Kredittspreadrisiko - Bankportefølje_Gj.sn. løpetid_CCC-D","KredRisk_BankPort_Gj_lopetid_CCC-D"]
["OMF (AAA)",{"$f":"+IF(Skjema!D109=\"\",\"\",Skjema!D109)","v":""},"mkr_88","Kredittspreadrisiko - Bankportefølje_Gj.sn. løpetid_OMF (AAA)","KredRisk_BankPort_Gj_lopetid_OMF(AAA)"]
["OMF (AA)",{"$f":"+IF(Skjema!D110=\"\",\"\",Skjema!D110)","v":""},"mkr_89","Kredittspreadrisiko - Bankportefølje_Gj.sn. løpetid_OMF (AA)","KredRisk_BankPort_Gj_lopetid_OMF(AA)"]
["Andre 0-vektere",{"$f":"+IF(Skjema!D111=\"\",\"\",Skjema!D111)","v":""},"mkr_107","Kredittspreadrisiko - Bankportefølje_Gj.sn. løpetid_Andre 0-vektere","KredRisk_BankPort_Gj_lopetid_Andre0-vektere"]
["Ikke ratet",{"$f":"+IF(Skjema!D112=\"\",\"\",Skjema!D112)","v":""},"mkr_90","Kredittspreadrisiko - Bankportefølje_Gj.sn. løpetid_Ikke ratet","KredRisk_BankPort_Gj_lopetid_IkkeRatet"]
["Sum",{"$f":"+IF(Skjema!D113=\"\",\"\",Skjema!D113)","v":0},"mkr_91","Kredittspreadrisiko - Bankportefølje_Gj.sn. løpetid_Sum","KredRisk_BankPort_Gj_lopetid_Sum"]
["",{"$f":"+IF(Skjema!D114=\"\",\"\",Skjema!D114)","v":""}]
["0-vektere unntatt (AAA og AA-vektede statsobligasjoner)",{"$f":"+IF(Skjema!D115=\"\",\"\",Skjema!D115)","v":""},"mkr_92",{"$f":"+$A$100&\"_\"&$B$118&\"_\"&A132","v":"Kredittspreadrisiko - Bankportefølje_Gj.sn. løpetid_0-vektere unntatt (AAA og AA-vektede statsobligasjoner)"},"KredRisk_BankPort_Gj_lopetid_0-vektereUnntatt"]
[{"$f":"+IF(Skjema!B118=\"\",\"\",Skjema!B118)","v":"Sum porteføljer unntatt"},{"$f":"+IF(Skjema!C118=\"\",\"\",Skjema!C118)","v":0},"mkr_94",{"$f":"+$A$100&\"_\"&$B$101&\"_\"&A133","v":"Kredittspreadrisiko - Bankportefølje_Markedsverdi (i tusen kr)_Sum porteføljer unntatt"},"KredRisk_BankPort_MarkedsVerdi_SumPortUnntatt"]
[{"$f":"+IF(Skjema!B119=\"\",\"\",Skjema!B119)","v":"Total likv.portefølje"},{"$f":"+IF(Skjema!C119=\"\",\"\",Skjema!C119)","v":0},"mkr_95",{"$f":"+$A$100&\"_\"&$B$101&\"_\"&A134","v":"Kredittspreadrisiko - Bankportefølje_Markedsverdi (i tusen kr)_Total likv.portefølje"},"KredRisk_BankPort_MarkedsVerdi_TotLikvPort"]
[{"$f":"+IF(Skjema!B120=\"\",\"\",Skjema!B120)","v":""},{"$f":"+IF(Skjema!C120=\"\",\"\",Skjema!C120)","v":"Beløp i tusen kr"}]
[{"$f":"+IF(Skjema!B121=\"\",\"\",Skjema!B121)","v":"Ramme for tapspotensial"},{"$f":"+IF(Skjema!C121=\"\",\"\",Skjema!C121)","v":""},"mkr_96","Kredittspreadrisiko_Bankportefølje_Ramme for tapspotensial","KredRisk_BankPort_RammeTapspot"]
[{"$f":"+IF(Skjema!B122=\"\",\"\",Skjema!B122)","v":"Tapspotensial etter 40% nedjustering"},{"$f":"+IF(Skjema!C122=\"\",\"\",Skjema!C122)","v":0},"mkr_105","Kredittspreadrisiko_Bankportefølje_Tapspotensial_nedjustert","KredRisk_BankPort_Tapspot_nedjust"]
[{"$f":"+IF(Skjema!B123=\"\",\"\",Skjema!B123)","v":"Tapspotensial iht. Solvens II-metodikk"},{"$f":"+IF(Skjema!C123=\"\",\"\",Skjema!C123)","v":0},"mkr_97","Kredittspreadrisiko_Bankportefølje_Tapspotensial","KredRisk_BankPort_Tapspot"]
[{"$f":"+IF(Skjema!B124=\"\",\"\",Skjema!B124)","v":"Eksponering"},{"$f":"+IF(Skjema!C124=\"\",\"\",Skjema!C124)","v":0},"mkr_98","Kredittspreadrisiko_Bankportefølje_Eksponering","KredRisk_BankPort_Eksponering"]
[{"$f":"+IF(Skjema!B125=\"\",\"\",Skjema!B125)","v":"Risikospredning (%)"},{"$f":"+IF(Skjema!C125=\"\",\"\",Skjema!C125)","v":""},"mkr_99","Kredittspreadrisiko_Bankportefølje_Risikospredning (%)","KredRisk_BankPort_RiskSpredning%"]
[{"$f":"+IF(Skjema!B126=\"\",\"\",Skjema!B126)","v":"Markedslikviditet (%)"},{"$f":"+IF(Skjema!C126=\"\",\"\",Skjema!C126)","v":""},"mkr_100","Kredittspreadrisiko_Bankportefølje_Markedslikviditet (%)","KredRisk_BankPort_Markedslikviditet%"]
[{"$f":"+IF(Skjema!B127=\"\",\"\",Skjema!B127)","v":"Risikospredning"},{"$f":"+IF(Skjema!C127=\"\",\"\",Skjema!C127)","v":0},"mkr_101","Kredittspreadrisiko_Bankportefølje_Risikospredning","KredRisk_BankPort_RiskSpredning"]
[{"$f":"+IF(Skjema!B128=\"\",\"\",Skjema!B128)","v":"Markedslikviditet"},{"$f":"+IF(Skjema!C128=\"\",\"\",Skjema!C128)","v":0},"mkr_102","Kredittspreadrisiko_Bankportefølje_Markedslikviditet","KredRisk_BankPort_Markedslikviditet"]
[{"$f":"+IF(Skjema!B129=\"\",\"\",Skjema!B129)","v":""},{"$f":"+IF(Skjema!C129=\"\",\"\",Skjema!C129)","v":""},null,"",""]
[{"$f":"+IF(Skjema!B130=\"\",\"\",Skjema!B130)","v":"Definisjon av ramme \n- evt. henvisning til dokumentnavn fra arkfane \"Vedlegg\""},{"$f":"+IF(Skjema!C130=\"\",\"\",Skjema!C130)","v":""},"mkr_103","Kredittspreadrisiko_Bankportefølje_Definisjon av ramme \n- evt. henvisning til dokumentnavn fra arkfane \"Vedlegg\"","KredRisk_BankPort_DefRamme"]
[{"$f":"+IF(Skjema!B131=\"\",\"\",Skjema!B131)","v":""},{"$f":"+IF(Skjema!C131=\"\",\"\",Skjema!C131)","v":""}]
[{"$f":"+IF(Skjema!B132=\"\",\"\",Skjema!B132)","v":"Andre relevante opplysninger for Finanstilsynets vurdering av foretakets markedsrisikonivå, herunder markedsrisiko som ikke er omfattet av rapporteringen ovenfor:"},{"$f":"+IF(Skjema!C132=\"\",\"\",Skjema!C132)","v":""},"mkr_104",{"$f":"+A147","v":"Andre relevante opplysninger for Finanstilsynets vurdering av foretakets markedsrisikonivå, herunder markedsrisiko som ikke er omfattet av rapporteringen ovenfor:"},"AndreRelOpplysn"]